[Event "Titled Tuesday Blitz August 09 Early 2022"]
[White "Abdrlauf, Elham"]
[Black "Perez Leiva, Jerzy Jesus"]
[WhiteFideId "1533533"]
[BlackFideId "3524337"]
[WhiteElo "2430"]
[BlackElo "2287"]
[Result "1-0"]
[Round "01"]
[TimeControl "180+1"]
[Date "2022.08.09"]
[WhiteClock "0:01:01"]
[BlackClock "0:00:33"]

1. e4 {[%clk 0:02:58]}  e5 {[%clk 0:02:56]} 2. Nc3 {[%clk 0:02:55]}  Nf6 {[%clk 0:02:55]} 3. d4 {[%clk 0:02:53]}  exd4 {[%clk 0:02:43]} 4. Qxd4 {[%clk 0:02:54]}  Nc6 {[%clk 0:02:39]} 5. Qd3 {[%clk 0:02:54]}  g6 {[%clk 0:02:28]} 6. Bg5 {[%clk 0:02:52]}  Bg7 {[%clk 0:02:27]} 7. f4 {[%clk 0:02:49]}  h6 {[%clk 0:02:26]} 8. Bh4 {[%clk 0:02:49]}  d6 {[%clk 0:02:25]} 9. O-O-O {[%clk 0:02:45]}  Bg4 {[%clk 0:02:25]} 10. Be2 {[%clk 0:02:31]}  Qd7 {[%clk 0:02:18]} 11. Nf3 {[%clk 0:02:16]}  Nh5 {[%clk 0:02:13]} 12. g3 {[%clk 0:02:10]}  O-O {[%clk 0:02:10]} 13. Nd5 {[%clk 0:02:09]}  f5 {[%clk 0:01:54]} 14. e5 {[%clk 0:01:56]}  Qf7 {[%clk 0:01:35]} 15. e6 {[%clk 0:01:53]}  Qxe6 {[%clk 0:01:32]} 16. Nxc7 {[%clk 0:01:51]}  Qxa2 {[%clk 0:01:31]} 17. Qc4+ {[%clk 0:01:51]}  Qxc4 {[%clk 0:01:29]} 18. Bxc4+ {[%clk 0:01:52]}  Kh7 {[%clk 0:01:29]} 19. Rhf1 {[%clk 0:01:50]}  Rac8 {[%clk 0:01:17]} 20. Ne6 {[%clk 0:01:49]}  Rfe8 {[%clk 0:01:09]} 21. Rxd6 {[%clk 0:01:49]}  Bf6 {[%clk 0:00:51]} 22. Rd7+ {[%clk 0:01:25]}  Re7 {[%clk 0:00:50]} 23. Rxe7+ {[%clk 0:01:21]}  Nxe7 {[%clk 0:00:49]} 24. Bxf6 {[%clk 0:01:21]}  Nxf6 {[%clk 0:00:48]} 25. Ne5 {[%clk 0:01:21]}  Ne4 {[%clk 0:00:36]} 26. Bd3 {[%clk 0:01:08]}  Bh3 {[%clk 0:00:30]} 27. Re1 {[%clk 0:01:01]}  Bg2 {[%clk 0:00:31]} 28. Re2 {[%clk 0:00:59]}  Bh1 {[%clk 0:00:31]} 29. Bxe4 {[%clk 0:00:54]}  Bxe4 {[%clk 0:00:30]} 30. Nd7 {[%clk 0:00:55]}  Nd5 {[%clk 0:00:30]} 31. Nec5 {[%clk 0:00:50]}  Nb4 {[%clk 0:00:24]} 32. Nxe4 {[%clk 0:00:50]}  fxe4 {[%clk 0:00:23]} 33. Nf6+ {[%clk 0:00:50]}  Kg7 {[%clk 0:00:23]} 34. Nxe4 {[%clk 0:00:51]}  Nd3+ {[%clk 0:00:20]} 35. Kb1 {[%clk 0:00:51]}  Nb4 {[%clk 0:00:19]} 36. c3 {[%clk 0:00:51]}  Nd3 {[%clk 0:00:19]} 37. Nd6 {[%clk 0:00:51]}  Rc7 {[%clk 0:00:20]} 38. Ne8+ {[%clk 0:00:51]}  Kf7 {[%clk 0:00:16]} 39. Nxc7 {[%clk 0:00:52]}  Kf6 {[%clk 0:00:17]} 40. Nd5+ {[%clk 0:00:51]}  Kf5 {[%clk 0:00:18]} 41. Re7 {[%clk 0:00:50]}  Kg4 {[%clk 0:00:18]} 42. Rxb7 {[%clk 0:00:50]}  Kf3 {[%clk 0:00:19]} 43. Rxa7 {[%clk 0:00:50]}  Ne1 {[%clk 0:00:20]} 44. Rg7 {[%clk 0:00:50]}  Ng2 {[%clk 0:00:21]} 45. Rxg6 {[%clk 0:00:50]}  Ne3 {[%clk 0:00:22]} 46. Nxe3 {[%clk 0:00:50]}  Ke4 {[%clk 0:00:21]} 47. Rxh6 {[%clk 0:00:51]}  Kd3 {[%clk 0:00:22]} 48. Rd6+ {[%clk 0:00:51]}  Ke2 {[%clk 0:00:23]} 49. c4 {[%clk 0:00:51]}  Ke1 {[%clk 0:00:24]} 50. c5 {[%clk 0:00:52]}  Kf2 {[%clk 0:00:25]} 51. c6 {[%clk 0:00:53]}  Ke2 {[%clk 0:00:26]} 52. c7 {[%clk 0:00:54]}  Kf3 {[%clk 0:00:26]} 53. f5 {[%clk 0:00:54]}  Kf2 {[%clk 0:00:27]} 54. f6 {[%clk 0:00:55]}  Ke2 {[%clk 0:00:28]} 55. f7 {[%clk 0:00:56]}  Kf3 {[%clk 0:00:29]} 56. g4 {[%clk 0:00:57]}  Kf2 {[%clk 0:00:30]} 57. g5 {[%clk 0:00:58]}  Kf3 {[%clk 0:00:29]} 58. g6 {[%clk 0:00:59]}  Kf4 {[%clk 0:00:29]} 59. g7 {[%clk 0:01:00]}  Ke4 {[%clk 0:00:30]} 60. Rd8 {[%clk 0:01:01]}  Ke5 {[%clk 0:00:31]} 61. b4 {[%clk 0:01:01]}  Ke4 {[%clk 0:00:32]} 62. b5 {[%clk 0:01:01]}  Kf3 {[%clk 0:00:33]} 63. b6 {[%clk 0:01:01]}  Ke2 {[%clk 0:00:33]} 1-0


[Site "https://www.chess.com"]

[Event "Titled Tuesday Blitz August 09 Early 2022"]
[White "Atakhan, Abtin"]
[Black "Ezov"]
[WhiteFideId "22502203"]
[WhiteElo "2087"]
[BlackElo "2399"]
[Result "1-0"]
[Round "01"]
[TimeControl "180+1"]
[Date "2022.08.09"]
[WhiteClock "0:01:21"]
[BlackClock "0:00:14"]

1. d4 {[%clk 0:02:56]}  Nf6 {[%clk 0:02:48]} 2. c4 {[%clk 0:02:56]}  c5 {[%clk 0:02:47]} 3. d5 {[%clk 0:02:56]}  b5 {[%clk 0:02:47]} 4. cxb5 {[%clk 0:02:56]}  a6 {[%clk 0:02:48]} 5. bxa6 {[%clk 0:02:57]}  g6 {[%clk 0:02:47]} 6. Nc3 {[%clk 0:02:57]}  Bg7 {[%clk 0:02:47]} 7. e4 {[%clk 0:02:57]}  d6 {[%clk 0:02:46]} 8. Nf3 {[%clk 0:02:57]}  O-O {[%clk 0:02:42]} 9. a7 {[%clk 0:02:56]}  Rxa7 {[%clk 0:02:41]} 10. a4 {[%clk 0:02:52]}  Na6 {[%clk 0:02:41]} 11. Bb5 {[%clk 0:02:48]}  Nb4 {[%clk 0:02:39]} 12. O-O {[%clk 0:02:48]}  e6 {[%clk 0:02:40]} 13. dxe6 {[%clk 0:02:44]}  Bxe6 {[%clk 0:02:38]} 14. e5 {[%clk 0:02:44]}  dxe5 {[%clk 0:02:33]} 15. Qxd8 {[%clk 0:02:43]}  Rxd8 {[%clk 0:02:33]} 16. Nxe5 {[%clk 0:02:44]}  Nfd5 {[%clk 0:02:19]} 17. Nxd5 {[%clk 0:02:43]}  Bxd5 {[%clk 0:02:16]} 18. Bf4 {[%clk 0:02:38]}  g5 {[%clk 0:01:54]} 19. Bxg5 {[%clk 0:02:18]}  f6 {[%clk 0:01:53]} 20. Bh4 {[%clk 0:02:18]}  Rda8 {[%clk 0:01:38]} 21. Nd7 {[%clk 0:02:11]}  Be6 {[%clk 0:01:26]} 22. Nxc5 {[%clk 0:02:02]}  Bg4 {[%clk 0:01:22]} 23. Ne4 {[%clk 0:01:52]}  f5 {[%clk 0:01:22]} 24. Nf6+ {[%clk 0:01:53]}  Kh8 {[%clk 0:01:21]} 25. Rac1 {[%clk 0:01:49]}  Bh6 {[%clk 0:01:03]} 26. Rc4 {[%clk 0:01:40]}  Be2 {[%clk 0:00:58]} 27. Rxb4 {[%clk 0:01:38]}  Bxf1 {[%clk 0:00:57]} 28. Kxf1 {[%clk 0:01:38]}  Rc7 {[%clk 0:00:49]} 29. g4 {[%clk 0:01:29]}  Bd2 {[%clk 0:00:37]} 30. Rd4 {[%clk 0:01:25]}  Rc1+ {[%clk 0:00:31]} 31. Kg2 {[%clk 0:01:24]}  Ba5 {[%clk 0:00:25]} 32. Rd7 {[%clk 0:01:23]}  Rc7 {[%clk 0:00:15]} 33. Rxc7 {[%clk 0:01:23]}  Bxc7 {[%clk 0:00:14]} 34. Nd5 {[%clk 0:01:23]}  Be5 {[%clk 0:00:14]} 35. gxf5 {[%clk 0:01:21]} 1-0


[Site "https://www.chess.com"]

[Event "Titled Tuesday Blitz August 09 Early 2022"]
[White "Averjanov, Alexey"]
[Black "Pourkashiyan, Atousa"]
[WhiteFideId "14109867"]
[BlackFideId "12502014"]
[WhiteElo "2655"]
[BlackElo "2247"]
[Result "1/2-1/2"]
[Round "01"]
[TimeControl "180+1"]
[Date "2022.08.09"]
[WhiteClock "0:00:29"]
[BlackClock "0:00:09"]

1. d4 {[%clk 0:02:59]}  Nf6 {[%clk 0:02:57]} 2. c4 {[%clk 0:02:54]}  e6 {[%clk 0:02:57]} 3. Nf3 {[%clk 0:02:53]}  d5 {[%clk 0:02:57]} 4. e3 {[%clk 0:02:53]}  Be7 {[%clk 0:02:56]} 5. Nbd2 {[%clk 0:02:53]}  O-O {[%clk 0:02:55]} 6. Bd3 {[%clk 0:02:53]}  dxc4 {[%clk 0:02:52]} 7. Nxc4 {[%clk 0:02:53]}  a6 {[%clk 0:02:53]} 8. O-O {[%clk 0:02:52]}  Nbd7 {[%clk 0:02:53]} 9. b3 {[%clk 0:02:52]}  c5 {[%clk 0:02:50]} 10. Bb2 {[%clk 0:02:51]}  b5 {[%clk 0:02:50]} 11. Nce5 {[%clk 0:02:51]}  Bb7 {[%clk 0:02:50]} 12. a4 {[%clk 0:02:50]}  Qb6 {[%clk 0:02:33]} 13. axb5 {[%clk 0:02:48]}  axb5 {[%clk 0:02:32]} 14. Qe2 {[%clk 0:02:47]}  b4 {[%clk 0:02:13]} 15. h3 {[%clk 0:02:46]}  h6 {[%clk 0:02:06]} 16. dxc5 {[%clk 0:02:35]}  Nxc5 {[%clk 0:01:59]} 17. Bc4 {[%clk 0:02:33]}  Rxa1 {[%clk 0:01:53]} 18. Rxa1 {[%clk 0:02:33]}  Ra8 {[%clk 0:01:52]} 19. Rxa8+ {[%clk 0:02:32]}  Bxa8 {[%clk 0:01:52]} 20. Bd4 {[%clk 0:02:32]}  Qb7 {[%clk 0:01:49]} 21. Qc2 {[%clk 0:02:24]}  Nfe4 {[%clk 0:01:35]} 22. Nd3 {[%clk 0:01:53]}  Nxd3 {[%clk 0:01:16]} 23. Bxd3 {[%clk 0:01:46]}  Ng5 {[%clk 0:01:15]} 24. Be2 {[%clk 0:01:45]}  Bf6 {[%clk 0:01:00]} 25. Bxf6 {[%clk 0:01:39]}  gxf6 {[%clk 0:01:00]} 26. Qc5 {[%clk 0:01:34]}  Kg7 {[%clk 0:00:53]} 27. Qd4 {[%clk 0:01:29]}  e5 {[%clk 0:00:36]} 28. Qc5 {[%clk 0:01:24]}  Qe4 {[%clk 0:00:33]} 29. Qc1 {[%clk 0:01:18]}  Bd5 {[%clk 0:00:29]} 30. Bd1 {[%clk 0:01:17]}  Qd3 {[%clk 0:00:25]} 31. Nxg5 {[%clk 0:01:11]}  hxg5 {[%clk 0:00:25]} 32. Qc2 {[%clk 0:01:04]}  Be4 {[%clk 0:00:02]} 33. Qxd3 {[%clk 0:00:56]}  Bxd3 {[%clk 0:00:03]} 34. f3 {[%clk 0:00:57]}  f5 {[%clk 0:00:03]} 35. Kf2 {[%clk 0:00:54]}  Kf6 {[%clk 0:00:01]} 36. Ke1 {[%clk 0:00:53]}  f4 {[%clk 0:00:02]} 37. Kf2 {[%clk 0:00:48]}  Ke6 {[%clk 0:00:02]} 38. g3 {[%clk 0:00:49]}  Kf5 {[%clk 0:00:02]} 39. h4 {[%clk 0:00:45]}  fxg3+ {[%clk 0:00:02]} 40. Kxg3 {[%clk 0:00:46]}  gxh4+ {[%clk 0:00:02]} 41. Kxh4 {[%clk 0:00:46]}  e4 {[%clk 0:00:03]} 42. f4 {[%clk 0:00:43]}  f6 {[%clk 0:00:03]} 43. Bg4+ {[%clk 0:00:42]}  Kg6 {[%clk 0:00:02]} 44. Be6 {[%clk 0:00:42]}  Bc2 {[%clk 0:00:02]} 45. Bd5 {[%clk 0:00:42]}  Bd3 {[%clk 0:00:01]} 46. Kg4 {[%clk 0:00:41]}  Bc2 {[%clk 0:00:02]} 47. Be6 {[%clk 0:00:40]}  Bd1+ {[%clk 0:00:02]} 48. Kg3 {[%clk 0:00:40]}  Bc2 {[%clk 0:00:03]} 49. Bg8 {[%clk 0:00:39]}  Bd3 {[%clk 0:00:03]} 50. Kg4 {[%clk 0:00:36]}  Bc2 {[%clk 0:00:04]} 51. Be6 {[%clk 0:00:36]}  Bd1+ {[%clk 0:00:04]} 52. Kh4 {[%clk 0:00:35]}  Bc2 {[%clk 0:00:05]} 53. Kg3 {[%clk 0:00:34]}  Bd3 {[%clk 0:00:05]} 54. Kf2 {[%clk 0:00:34]}  Bc2 {[%clk 0:00:06]} 55. Ke2 {[%clk 0:00:32]}  Bd3+ {[%clk 0:00:06]} 56. Kd2 {[%clk 0:00:32]}  Kh5 {[%clk 0:00:06]} 57. Ke1 {[%clk 0:00:31]}  Kh4 {[%clk 0:00:07]} 58. Kf2 {[%clk 0:00:31]}  Bc2 {[%clk 0:00:07]} 59. Bd5 {[%clk 0:00:31]}  Bd3 {[%clk 0:00:08]} 60. Be6 {[%clk 0:00:31]}  Bc2 {[%clk 0:00:08]} 61. Bf7 {[%clk 0:00:31]}  Bd3 {[%clk 0:00:08]} 62. Bg8 {[%clk 0:00:30]}  Bc2 {[%clk 0:00:09]} 63. Bc4 {[%clk 0:00:31]}  Kh3 {[%clk 0:00:08]} 64. Be6+ {[%clk 0:00:29]}  Kh4 {[%clk 0:00:09]} 1/2-1/2


[Site "https://www.chess.com"]

[Event "Titled Tuesday Blitz August 09 Early 2022"]
[White "Baches Garcia, Guillermo"]
[Black "Jobava, Baadur"]
[WhiteFideId "2209764"]
[BlackFideId "13601520"]
[WhiteElo "2502"]
[BlackElo "2617"]
[Result "1-0"]
[Round "01"]
[TimeControl "180+1"]
[Date "2022.08.09"]
[WhiteClock "0:00:14"]
[BlackClock "0:00:14"]

1. e4 {[%clk 0:03:00]}  c6 {[%clk 0:02:58]} 2. d4 {[%clk 0:02:59]}  d5 {[%clk 0:02:59]} 3. exd5 {[%clk 0:03:00]}  cxd5 {[%clk 0:02:57]} 4. Bd3 {[%clk 0:03:01]}  Nf6 {[%clk 0:02:56]} 5. c3 {[%clk 0:03:00]}  Bg4 {[%clk 0:02:54]} 6. Qb3 {[%clk 0:03:00]}  Qc8 {[%clk 0:02:53]} 7. Bf4 {[%clk 0:02:54]}  e6 {[%clk 0:02:50]} 8. Nd2 {[%clk 0:02:53]}  Nc6 {[%clk 0:02:50]} 9. Ngf3 {[%clk 0:02:52]}  Bh5 {[%clk 0:02:49]} 10. O-O {[%clk 0:02:51]}  Bg6 {[%clk 0:02:48]} 11. Bxg6 {[%clk 0:02:48]}  hxg6 {[%clk 0:02:49]} 12. g3 {[%clk 0:02:38]}  Be7 {[%clk 0:02:46]} 13. h4 {[%clk 0:02:38]}  Bd8 {[%clk 0:02:13]} 14. Kg2 {[%clk 0:02:29]}  Bc7 {[%clk 0:02:13]} 15. Bxc7 {[%clk 0:02:29]}  Qxc7 {[%clk 0:02:13]} 16. Rfe1 {[%clk 0:02:28]}  O-O-O {[%clk 0:02:13]} 17. Qd1 {[%clk 0:02:13]}  Kb8 {[%clk 0:02:12]} 18. Qe2 {[%clk 0:02:13]}  Ne8 {[%clk 0:02:08]} 19. b4 {[%clk 0:02:07]}  Nd6 {[%clk 0:02:06]} 20. a4 {[%clk 0:02:06]}  Ne7 {[%clk 0:02:05]} 21. Rec1 {[%clk 0:01:53]}  Nef5 {[%clk 0:02:02]} 22. Ne5 {[%clk 0:01:47]}  g5 {[%clk 0:01:49]} 23. h5 {[%clk 0:01:41]}  f6 {[%clk 0:01:44]} 24. Nd3 {[%clk 0:01:29]}  Qf7 {[%clk 0:01:43]} 25. Rh1 {[%clk 0:01:24]}  Rc8 {[%clk 0:01:42]} 26. Nc5 {[%clk 0:01:15]}  Rhe8 {[%clk 0:01:32]} 27. Nf3 {[%clk 0:01:04]}  g4 {[%clk 0:01:30]} 28. Nh4 {[%clk 0:00:59]}  b6 {[%clk 0:01:13]} 29. Nxf5 {[%clk 0:00:53]}  exf5 {[%clk 0:01:06]} 30. Na6+ {[%clk 0:00:51]}  Kb7 {[%clk 0:01:06]} 31. Qd3 {[%clk 0:00:49]}  Nc4 {[%clk 0:00:56]} 32. b5 {[%clk 0:00:43]}  Re4 {[%clk 0:00:55]} 33. Nb4 {[%clk 0:00:39]}  f4 {[%clk 0:00:52]} 34. gxf4 {[%clk 0:00:32]}  Rxf4 {[%clk 0:00:53]} 35. h6 {[%clk 0:00:31]}  Re4 {[%clk 0:00:44]} 36. h7 {[%clk 0:00:29]}  Rh8 {[%clk 0:00:43]} 37. Nc6 {[%clk 0:00:29]}  Qg6 {[%clk 0:00:20]} 38. Qg3 {[%clk 0:00:21]}  Re2 {[%clk 0:00:14]} 39. a5 {[%clk 0:00:14]} 1-0


[Site "https://www.chess.com"]

[Event "Titled Tuesday Blitz August 09 Early 2022"]
[White "Balint, Vilmos"]
[Black "Harsh Suresh"]
[WhiteFideId "718050"]
[BlackFideId "45018464"]
[WhiteElo "2059"]
[BlackElo "2070"]
[Result "0-1"]
[Round "01"]
[TimeControl "180+1"]
[Date "2022.08.09"]
[WhiteClock "0:01:18"]
[BlackClock "0:00:27"]

1. e4 {[%clk 0:02:59]}  c6 {[%clk 0:02:58]} 2. d4 {[%clk 0:02:59]}  d5 {[%clk 0:02:57]} 3. e5 {[%clk 0:02:59]}  Bf5 {[%clk 0:02:55]} 4. Nf3 {[%clk 0:02:59]}  e6 {[%clk 0:02:55]} 5. Be2 {[%clk 0:02:59]}  a6 {[%clk 0:02:50]} 6. O-O {[%clk 0:02:58]}  h6 {[%clk 0:02:48]} 7. c4 {[%clk 0:02:45]}  Ne7 {[%clk 0:02:46]} 8. Nc3 {[%clk 0:02:44]}  dxc4 {[%clk 0:02:41]} 9. Bxc4 {[%clk 0:02:43]}  Nd5 {[%clk 0:02:41]} 10. Bxd5 {[%clk 0:02:41]}  cxd5 {[%clk 0:02:41]} 11. Bf4 {[%clk 0:02:33]}  Nc6 {[%clk 0:02:41]} 12. Rc1 {[%clk 0:02:32]}  Be7 {[%clk 0:02:39]} 13. a3 {[%clk 0:02:28]}  O-O {[%clk 0:02:38]} 14. Qb3 {[%clk 0:02:23]}  Na5 {[%clk 0:02:27]} 15. Qa2 {[%clk 0:02:19]}  b5 {[%clk 0:02:21]} 16. Ne2 {[%clk 0:02:12]}  Bd3 {[%clk 0:02:17]} 17. Rfe1 {[%clk 0:02:10]}  Bxe2 {[%clk 0:02:10]} 18. Rxe2 {[%clk 0:02:08]}  Rc8 {[%clk 0:02:09]} 19. Rec2 {[%clk 0:02:08]}  Qd7 {[%clk 0:02:09]} 20. Bd2 {[%clk 0:02:05]}  Nc4 {[%clk 0:01:59]} 21. b3 {[%clk 0:02:05]}  Nxa3 {[%clk 0:01:47]} 22. Rxc8 {[%clk 0:02:05]}  Rxc8 {[%clk 0:01:48]} 23. Rxc8+ {[%clk 0:02:04]}  Qxc8 {[%clk 0:01:49]} 24. g3 {[%clk 0:01:55]}  Qc2 {[%clk 0:01:40]} 25. Qxc2 {[%clk 0:01:54]}  Nxc2 {[%clk 0:01:41]} 26. Kf1 {[%clk 0:01:54]}  Bb4 {[%clk 0:01:39]} 27. Bc1 {[%clk 0:01:53]}  Na1 {[%clk 0:01:35]} 28. Bd2 {[%clk 0:01:49]}  Be7 {[%clk 0:01:20]} 29. b4 {[%clk 0:01:47]}  Nc2 {[%clk 0:01:20]} 30. Ke2 {[%clk 0:01:47]}  Nxb4 {[%clk 0:01:19]} 31. Kd1 {[%clk 0:01:47]}  Nc6 {[%clk 0:01:18]} 32. Kc2 {[%clk 0:01:46]}  a5 {[%clk 0:01:18]} 33. Bc3 {[%clk 0:01:44]}  Kf8 {[%clk 0:01:17]} 34. Nd2 {[%clk 0:01:43]}  Bb4 {[%clk 0:01:04]} 35. Bxb4+ {[%clk 0:01:32]}  Nxb4+ {[%clk 0:01:03]} 36. Kc3 {[%clk 0:01:33]}  Nc6 {[%clk 0:01:02]} 37. Nb3 {[%clk 0:01:32]}  Ke7 {[%clk 0:01:01]} 38. Nc5 {[%clk 0:01:32]}  Kd8 {[%clk 0:00:58]} 39. f4 {[%clk 0:01:31]}  Kc7 {[%clk 0:00:57]} 40. g4 {[%clk 0:01:27]}  Nb8 {[%clk 0:00:40]} 41. f5 {[%clk 0:01:26]}  Nd7 {[%clk 0:00:29]} 42. fxe6 {[%clk 0:01:25]}  Nxc5 {[%clk 0:00:28]} 43. exf7 {[%clk 0:01:23]}  Ne6 {[%clk 0:00:27]} 44. h4 {[%clk 0:01:20]}  g5 {[%clk 0:00:26]} 45. hxg5 {[%clk 0:01:18]}  hxg5 {[%clk 0:00:27]} 0-1


[Site "https://www.chess.com"]

[Event "Titled Tuesday Blitz August 09 Early 2022"]
[White "Bazeev, German"]
[Black "Parpiev, Isaak"]
[WhiteFideId "24119350"]
[BlackFideId "34281576"]
[WhiteElo "2493"]
[BlackElo "2049"]
[Result "1/2-1/2"]
[Round "01"]
[TimeControl "180+1"]
[Date "2022.08.09"]
[WhiteClock "0:00:11"]
[BlackClock "0:00:10"]

1. d4 {[%clk 0:03:00]}  Nf6 {[%clk 0:02:58]} 2. Nf3 {[%clk 0:03:00]}  g6 {[%clk 0:02:57]} 3. c4 {[%clk 0:03:01]}  Bg7 {[%clk 0:02:57]} 4. Nc3 {[%clk 0:03:01]}  O-O {[%clk 0:02:56]} 5. Bg5 {[%clk 0:03:02]}  d6 {[%clk 0:02:56]} 6. e3 {[%clk 0:03:02]}  h6 {[%clk 0:02:56]} 7. Bh4 {[%clk 0:03:02]}  Nbd7 {[%clk 0:02:56]} 8. Be2 {[%clk 0:03:01]}  e5 {[%clk 0:02:54]} 9. O-O {[%clk 0:03:01]}  Qe8 {[%clk 0:02:53]} 10. Rc1 {[%clk 0:02:59]}  g5 {[%clk 0:02:42]} 11. Bg3 {[%clk 0:02:59]}  Nh5 {[%clk 0:02:42]} 12. b4 {[%clk 0:02:33]}  Nxg3 {[%clk 0:02:41]} 13. hxg3 {[%clk 0:02:34]}  e4 {[%clk 0:02:33]} 14. Nd2 {[%clk 0:02:33]}  f5 {[%clk 0:02:30]} 15. g4 {[%clk 0:02:33]}  Nf6 {[%clk 0:02:24]} 16. Nd5 {[%clk 0:02:27]}  Qf7 {[%clk 0:02:08]} 17. gxf5 {[%clk 0:02:23]}  Nxd5 {[%clk 0:02:02]} 18. cxd5 {[%clk 0:02:23]}  Bxf5 {[%clk 0:02:02]} 19. Bg4 {[%clk 0:02:17]}  Rac8 {[%clk 0:01:57]} 20. Bxf5 {[%clk 0:01:37]}  Qxf5 {[%clk 0:01:56]} 21. Qc2 {[%clk 0:01:37]}  Rfe8 {[%clk 0:01:50]} 22. f3 {[%clk 0:01:34]}  Qxd5 {[%clk 0:01:50]} 23. fxe4 {[%clk 0:01:32]}  Qe6 {[%clk 0:01:37]} 24. Rf5 {[%clk 0:01:30]}  Rf8 {[%clk 0:01:06]} 25. Qc4 {[%clk 0:01:16]}  Qxc4 {[%clk 0:01:00]} 26. Rxc4 {[%clk 0:01:17]}  Rxf5 {[%clk 0:00:37]} 27. exf5 {[%clk 0:01:18]}  d5 {[%clk 0:00:38]} 28. Rc5 {[%clk 0:01:14]}  c6 {[%clk 0:00:32]} 29. g4 {[%clk 0:01:14]}  Bf8 {[%clk 0:00:30]} 30. Rc2 {[%clk 0:01:09]}  Bxb4 {[%clk 0:00:31]} 31. Rb2 {[%clk 0:01:10]}  Bxd2 {[%clk 0:00:30]} 32. Rxd2 {[%clk 0:01:11]}  Kf7 {[%clk 0:00:30]} 33. Kf2 {[%clk 0:01:09]}  Re8 {[%clk 0:00:30]} 34. Kf3 {[%clk 0:01:09]}  Kf6 {[%clk 0:00:30]} 35. Rh2 {[%clk 0:01:09]}  Rh8 {[%clk 0:00:27]} 36. a4 {[%clk 0:01:09]}  h5 {[%clk 0:00:24]} 37. Kg3 {[%clk 0:01:00]}  h4+ {[%clk 0:00:19]} 38. Kf3 {[%clk 0:01:01]}  Re8 {[%clk 0:00:19]} 39. a5 {[%clk 0:01:00]}  b6 {[%clk 0:00:18]} 40. Rc2 {[%clk 0:00:58]}  Rc8 {[%clk 0:00:17]} 41. Rb2 {[%clk 0:00:49]}  Rb8 {[%clk 0:00:15]} 42. Rc2 {[%clk 0:00:49]}  Rc8 {[%clk 0:00:15]} 43. Rb2 {[%clk 0:00:49]}  b5 {[%clk 0:00:16]} 44. Rb1 {[%clk 0:00:36]}  a6 {[%clk 0:00:16]} 45. Rb2 {[%clk 0:00:35]}  c5 {[%clk 0:00:16]} 46. dxc5 {[%clk 0:00:34]}  Rxc5 {[%clk 0:00:17]} 47. Rb1 {[%clk 0:00:33]}  Rc3 {[%clk 0:00:17]} 48. Rd1 {[%clk 0:00:33]}  Ke5 {[%clk 0:00:17]} 49. f6 {[%clk 0:00:32]}  Kxf6 {[%clk 0:00:17]} 50. Rxd5 {[%clk 0:00:32]}  Rc6 {[%clk 0:00:15]} 51. Rd8 {[%clk 0:00:32]}  Kg6 {[%clk 0:00:15]} 52. Ke4 {[%clk 0:00:28]}  Re6+ {[%clk 0:00:15]} 53. Kd4 {[%clk 0:00:28]}  Kh7 {[%clk 0:00:13]} 54. Rd7+ {[%clk 0:00:25]}  Kg8 {[%clk 0:00:13]} 55. Rc7 {[%clk 0:00:20]}  Rh6 {[%clk 0:00:11]} 56. Ke5 {[%clk 0:00:14]}  h3 {[%clk 0:00:12]} 57. Rc1 {[%clk 0:00:15]}  h2 {[%clk 0:00:12]} 58. Rh1 {[%clk 0:00:16]}  Rh3 {[%clk 0:00:12]} 59. Kf5 {[%clk 0:00:15]}  Rxe3 {[%clk 0:00:12]} 60. Rxh2 {[%clk 0:00:15]}  Ra3 {[%clk 0:00:12]} 61. Kxg5 {[%clk 0:00:10]}  Rxa5 {[%clk 0:00:12]} 62. Kg6 {[%clk 0:00:10]}  Ra4 {[%clk 0:00:10]} 63. g5 {[%clk 0:00:10]}  Rd4 {[%clk 0:00:07]} 64. Re2 {[%clk 0:00:10]}  Rd6+ {[%clk 0:00:08]} 65. Kf5 {[%clk 0:00:11]}  Kf7 {[%clk 0:00:08]} 66. Rc2 {[%clk 0:00:11]}  Rd5+ {[%clk 0:00:08]} 67. Kf4 {[%clk 0:00:10]}  a5 {[%clk 0:00:08]} 68. Rc7+ {[%clk 0:00:10]}  Kg6 {[%clk 0:00:08]} 69. Rc6+ {[%clk 0:00:10]}  Kg7 {[%clk 0:00:09]} 70. Rc7+ {[%clk 0:00:10]}  Kg6 {[%clk 0:00:10]} 71. Rc6+ {[%clk 0:00:11]}  Kf7 {[%clk 0:00:10]} 72. Rc7+ {[%clk 0:00:11]}  Kg6 {[%clk 0:00:10]} 1/2-1/2


[Site "https://www.chess.com"]